Cogmind - Beta 13 *** ADVENTURER MODE // 2024.03.31 @ 08:57:35 Player: BlakeOblivion Result: Destroyed by Y-45 Defender with Beam Rifle Performance ------------- Evolutions (2) 1000 Regions Visited (3) 600 Robots Destroyed (15) 75 Value Destroyed (461) 461 Prototype IDs (0) 0 Alien Tech Used (0) 0 Bonus (0) 0 TOTAL SCORE: 2136 Bonus ------- None Cogmind --------- Core Integrity 0/550 Matter 300/300 Energy 100/100 System Corruption 0% Temperature Cool (9) Movement Core (350) Ox6 Location -8/Materials Parts ------- > --- POWER (2) -------- (None) > --- PROPULSION (3) --- (None) > --- UTILITY (3) ------ Large Storage Unit > --- WEAPON (3) ------- (None) > --- INVENTORY (15) --- Aluminum Leg Flight Unit Heat Sink Reaction Control System Peak State ------------ > --- POWER ------------ Deuterium Engine Light Deuterium Engine > --- PROPULSION ------- Light Treads Light Treads > --- UTILITY ---------- Improved Heat Sink Large Storage Unit ECM Suite > --- WEAPON ----------- Medium Laser Medium Laser > --- INVENTORY -------- Aluminum Leg Flight Unit Heat Sink Reaction Control System [Rating: 15] Favorites ----------- Power Light Ion Engine Engine Light Ion Engine Propulsion Light Treads Treads Light Treads Leg Aluminum Leg Hover Unit Hover Unit Flight Unit Flight Unit Utility ECM Suite Device ECM Suite Storage Large Storage Unit Weapon Medium Laser Energy Gun Medium Laser Ballistic Gun Assault Rifle Build | -11 -10 -9 -8 ------- Run | Yrd Mat Mat Mat Slots Evolved 4 | . . 2 2 Power 1 | . . 1 . Propulsion 1 | . . . 1 Utility 1 | . . . 1 Weapon 1 | . . 1 . Parts Attached 19 | 5 4 5 5 Power 3 | 1 . . 2 Engine 3 | 1 . . 2 Core . | . . . . Reactor . | . . . . Propulsion 9 | 2 2 4 1 Treads 2 | . . 1 1 Leg 4 | 2 . 2 . Wheel . | . . . . Hover 2 | . 2 . . Flight 1 | . . 1 . Utility 4 | . 2 . 2 Device 3 | . 1 . 2 Storage 1 | . 1 . . Processor . | . . . . Hackware . | . . . . Protection . | . . . . Artifact . | . . . . Weapon 3 | 2 . 1 . Energy Gun 2 | 1 . 1 . Energy Cannon . | . . . . Ballistic Gun 1 | 1 . . . Ballistic Cannon . | . . . . Launcher . | . . . . Special Weapon . | . . . . Impact Weapon . | . . . . Slashing Weapon . | . . . . Piercing Weapon . | . . . . Special Melee Weapon . | . . . . Unidentified Prototypes . | . . . . Parts Lost 11 | . . 2 9 Power 3 | . . 1 2 Propulsion 3 | . . 1 2 Utility 2 | . . . 2 Weapon 3 | . . . 3 Highest Loss Streak 8 | . . 1 8 To Critical Strikes . | . . . . Average Slot Usage (%) 70 | . 74 70 69 Engine 8 | . 14 5 10 Treads 9 | . . 8 14 Leg 1 | . 14 . . Hover 2 | . 6 2 . Device 12 | . 9 11 17 Storage 9 | . 1 11 9 Energy Gun 19 | . 14 22 16 Ballistic Gun 8 | . 14 11 1 Naked Turns . | . . . . Heaviest Build 41 | 7 29 31 41 Greatest Support 40 | 20 20 20 40 Greatest Overweight (x) 10 | . 9 10 7 Average Overweight (x) 1 | . . 2 1 Largest Inventory Capacity 15 | 5 15 15 15 Average Capacity 13 | 5 6 15 15 Most Carried 5 | 5 5 3 5 Average Carried 2 | 2 3 2 2 Final Capacity 15 | 5 15 15 15 Final Carried 4 | 3 2 3 4 Class Distribution -------------------- 55% | Gunner 37% | Mutant 7% | Scavenger-Mutant Dominant Class ---------------- Mutant | -10/Materials Gunner | -9/Materials Mutant | -8/Materials Resources | -11 -10 -9 -8 ----------- Run | Yrd Mat Mat Mat Matter Collected 486 | 262 54 107 63 Remotely . | . . . . Salvage Created 568 | 44 59 240 225 Parts 25 | . 7 8 10 Haulers Intercepted . | . . . . Recyclers Shooed . | . . . . Parts Field Recycled . | . . . . Retrieved Matter . | . . . . Parts Self-Destructed . | . . . . Prevented . | . . . . Kills | -11 -10 -9 -8 ------- Run | Yrd Mat Mat Mat Combat Hostiles Destroyed 12 | 1 3 5 3 Guns 12 | 1 3 5 3 Classes Destroyed 4 | 1 2 1 . Watcher 3 | . 1 . 2 Swarmer 3 | . 3 . . Grunt 6 | 1 . 3 2 Sentry 3 | . . 2 1 Best Kill Streak 3 | 1 3 2 1 Combat Bots Only 3 | 1 3 2 1 Max Kills in Single Turn 2 | 1 1 2 1 Gunslinging 1 | . . 1 . Exploded . | . . . . Melee . | . . . . Uniques/NPCs Destroyed . | . . . . Combat | -11 -10 -9 -8 -------- Run | Yrd Mat Mat Mat Hostile Shots Fired 226 | 6 25 42 153 Missed 73 | 1 5 12 55 Damage Taken 1633 | 42 114 332 1145 Core 683 | 17 26 83 557 Absorbed by Shields . | . . . . Ignored by Resistances 470 | 13 40 97 320 Core Remaining (%) 84 | 93 82 79 . Volleys Fired 58 | 4 14 15 25 Largest 3 | 2 2 3 3 Hottest 120 | 70 70 120 120 Shots Fired 137 | 8 28 45 56 Gun 137 | 8 28 45 56 Cannon . | . . . . Launcher . | . . . . Special . | . . . . Kinetic 39 | 4 14 15 6 Thermal 98 | 4 14 30 50 Explosive . | . . . . Electromagnetic . | . . . . Robot Hit Streak 26 | 5 6 26 14 Robot Miss Streak 2 | 1 2 1 2 Penetration Max . | . . . . Secondary Targets 2 | . . 2 . Max Gunslinging Chain 1 | . . 1 . Shots Hit Robots 104 | 7 15 42 40 Core Hits 29 | 2 4 10 13 Critical Kills 1 | 1 . . . Critical Parts Destroyed . | . . . . Critical Strikes 6 | 1 1 3 1 Burn 5 | . 1 3 1 Destroy 1 | 1 . . . Melee Attacks . | . . . . Impact . | . . . . Slashing . | . . . . Piercing . | . . . . Sneak Attacks . | . . . . Combat Hostiles . | . . . . Follow-up Attacks . | . . . . Damage Inflicted 1330 | 86 201 516 527 Guns 1330 | 86 201 516 527 Cannons . | . . . . Explosions . | . . . . Melee . | . . . . Ramming . | . . . . Kinetic 376 | 49 112 167 48 Thermal 954 | 37 89 349 479 Explosive . | . . . . Electromagnetic . | . . . . Impact . | . . . . Slashing . | . . . . Piercing . | . . . . Highest Corruption . | . . . . Average Corruption . | . . . . Corruption Purged . | . . . . Corruption Blocked . | . . . . Overload Shots . | . . . . Overflow Damage . | . . . . Projectiles . | . . . . Explosions . | . . . . Melee . | . . . . Knockbacks . | . . . . Impact . | . . . . Kinetic . | . . . . Secondary . | . . . . Self-Inflicted Damage . | . . . . Shots . | . . . . Rammed . | . . . . Targets Rammed . | . . . . Kicked . | . . . . Crushed . | . . . . Highest Temperature 256 | 42 72 256 36 Average Temperature 53 | 25 28 92 14 Received Heat Transfer 666 | 30 . 141 495 Siege Activations . | . . . . Robots Corrupted . | . . . . Combat Hostiles . | . . . . Parts Fried . | . . . . Impact Corruptions . | . . . . Robots Melted . | . . . . Combat Hostiles . | . . . . Parts Melted 13 | 2 . 6 5 Heat Transferred 3182 | 111 333 1258 1480 Parts Sabotaged . | . . . . Parts Stolen . | . . . . Parts Stripped . | . . . . Power Chain Reactions . | . . . . Alert | -11 -10 -9 -8 ------- Run | Yrd Mat Mat Mat Peak Influence 141 | 20 103 141 79 Initial 36 | . 11 36 . Average 48 | 2 84 47 43 Maximum Alert Level . | . . . . Low Security (%) 100 | 100 100 100 100 Level 1 . | . . . . Level 2 . | . . . . Level 3 . | . . . . Level 4 . | . . . . Level 5 . | . . . . High Security . | . . . . Max Security . | . . . . Squads Dispatched 4 | . . 2 2 Investigation 2 | . . 1 1 Extermination . | . . . . Reinforcement 1 | . . 1 . Assault . | . . . . Garrison 1 | . . . 1 Intercept . | . . . . Searches Triggered . | . . . . Construction Impeded . | . . . . Haulers Reinforced . | . . . . Active Scanning Responses . | . . . . Cargo Convoy Interrupts . | . . . . Stealth | -11 -10 -9 -8 --------- Run | Yrd Mat Mat Mat Distress Signals 2 | . 1 . 1 Communications Jammed . | . . . . Distress Signals . | . . . . Times Spotted 25 | 1 5 7 12 Peak Tracking Total 4 | 1 4 2 4 Tactical Retreats 2 | . . 2 . Traps | -11 -10 -9 -8 ------- Run | Yrd Mat Mat Mat Traps Triggered 2 | . . 1 1 Indirectly . | . . . . Trap Hack Attempts . | . . . . Triggered . | . . . . Disarmed . | . . . . Reprogrammed . | . . . . Reused . | . . . . Traps Extracted . | . . . . Installed . | . . . . Triggered . | . . . . Machines | -11 -10 -9 -8 ---------- Run | Yrd Mat Mat Mat Machines Disabled . | . . . . Max in Single Turn . | . . . . Machines Repaired . | . . . . Machines Dismantled . | . . . . Machines Sabotaged . | . . . . Overloaded Fab Kills . | . . . . Hacking | -11 -10 -9 -8 --------- Run | Yrd Mat Mat Mat Machines Accessed 3 | . 1 1 1 Terminals 2 | . . 1 1 Fabricators . | . . . . Repair Stations . | . . . . Recycling Units 1 | . 1 . . Scanalyzers . | . . . . Garrison Access . | . . . . Total Hacks 8 | . 6 1 1 Successful 5 | . 4 1 . Failed 3 | . 2 . 1 Catastrophic . | . . . . Database Lockouts . | . . . . Manual . | . . . . Terminals 2 | . . 1 1 Fabricators . | . . . . Repair Stations . | . . . . Recycling Units 6 | . 6 . . Scanalyzers . | . . . . Garrison Access . | . . . . Terminal Hacks 1 | . . 1 . Alert Level 1 | . . 1 . Fabricator Hacks . | . . . . Repair Station Hacks . | . . . . Recycling Unit Hacks 4 | . 4 . . Recycle Component 2 | . 2 . . Process 1 | . 1 . . Retrieve Matter 1 | . 1 . . Scanalyzer . | . . . . Garrison Access Hacks . | . . . . Unauthorized Hacks . | . . . . Terminals . | . . . . Fabricators . | . . . . Repair Stations . | . . . . Recycling Units . | . . . . Scanalyzers . | . . . . Garrison Access . | . . . . Data Cores Recovered . | . . . . Used . | . . . . Hacking Detections 2 | . 1 . 1 Full Trace Events 1 | . 1 . . Feedback Events . | . . . . Feedback Blocked . | . . . . Robot Schematics Acquired . | . . . . Robots Built . | . . . . Authchips . | . . . . Time . | . . . . Total Robot Build Rating . | . . . . Part Schematics Acquired . | . . . . Parts Built . | . . . . Authchips . | . . . . Time . | . . . . Total Part Build Rating . | . . . . Parts Repaired . | . . . . Time . | . . . . Parts Recycled 2 | . 2 . . Recycled Matter 103 | . 103 . . Retrieved Matter 103 | . 103 . . Retrieved Components . | . . . . Parts Scanalyzed . | . . . . Part Schematics Acquired . | . . . . Parts Damaged . | . . . . Bothacking | -11 -10 -9 -8 ------------ Run | Yrd Mat Mat Mat Used RIF Installer . | . . . . Robots Hacked . | . . . . Non-combat . | . . . . Combat . | . . . . Robot Hacks Applied . | . . . . Relay Couplers Released . | . . . . Fabnet Peak Effective % . | . . . . Robots Rewired . | . . . . Allies Hacked . | . . . . Hacks Repelled . | . . . . Allies | -11 -10 -9 -8 -------- Run | Yrd Mat Mat Mat Total Allies . | . . . . Largest Group . | . . . . Highest-Rated Group . | . . . . Highest-Rated Ally . | . . . . Total Orders . | . . . . Ally Attacks . | . . . . Total Damage . | . . . . Kills . | . . . . Allies Corrupted . | . . . . Allies Melted . | . . . . Intel | -11 -10 -9 -8 ------- Run | Yrd Mat Mat Mat Robot Analysis Total . | . . . . Derelict Logs Recovered . | . . . . Drone Launches . | . . . . Drone Recoveries . | . . . . Exploration | -11 -10 -9 -8 ------------- Run | Yrd Mat Mat Mat Turns Passed 1882 | 115 239 963 565 Spaces Moved 642 | 88 142 218 194 Core 38 | 21 1 6 10 Treads 346 | . . 162 184 Legs 126 | 67 59 . . Wheels . | . . . . Hover 132 | . 82 50 . Flight . | . . . . Fastest Speed 50 | 50 120 240 160 Average Speed 205 | 103 134 276 226 Slowest Speed 550 | 120 500 550 400 Overloaded Moves . | . . . . Propulsion Burnouts . | . . . . Robots Hopped . | . . . . Cave-ins Triggered . | . . . . Exploration Rate (%) 17 | 7 30 18 16 Regions Visited 3 Branch Regions . Pre-discovered Areas . | . . . . Known Exits Taken . | . . . . Unknown Exits Taken 3 | 1 1 1 . Scrap Searched . | . . . . Spaces Dug . | . . . . Terrain Destroyed . | . . . . Melee . | . . . . Projectile . | . . . . AOE . | . . . . Terrain Rammed . | . . . . Walls Destroyed . | . . . . Machines Disabled . | . . . . Actions | -11 -10 -9 -8 --------- Run | Yrd Mat Mat Mat Total 1088 | 104 166 548 270 Wait 345 | . . 305 40 Move 639 | 87 141 217 194 Hop . | . . . . Pick Up 20 | 8 4 3 5 Fast Attach . | . . . . Attach 19 | 5 4 5 5 Detach 5 | . 1 3 1 Swap . | . . . . Drop 2 | . 2 . . Fire 58 | 4 14 15 25 Melee . | . . . . Ram . | . . . . Kick . | . . . . Crush . | . . . . Escape Stasis . | . . . . Rewire . | . . . . Trap . | . . . . Miscellaneous . | . . . . Route ------- -11/Scrapyard -10/Materials -9/Materials -8/Materials History --------- Turn | Location | Event 2 | -11/Scrapyard | Met Revision 17 75 | -11/Scrapyard | Discovered new exit (range 8) 116 | -11/Scrapyard | Entered Materials 306 | -10/Materials | Discovered new exit (range 10) 312 | -10/Materials | Build established: Mutant 355 | -10/Materials | Entered another Materials area 355 | -9/Materials | Evolved 2 slots: Power x1, Weapon x1 672 | -9/Materials | Build established: Gunner 1292 | -9/Materials | Discovered new exit (range 11) 1318 | -9/Materials | Entered another Materials area 1318 | -8/Materials | Evolved 2 slots: Propulsion x1, Utility x1 1795 | -8/Materials | Garrison activated, responded to threat 1861 | -8/Materials | Core integrity fell below 50% 1874 | -8/Materials | Core integrity fell below 20% 1883 | -8/Materials | Destroyed by Y-45 Defender with Beam Rifle Last Messages --------------- 01809_ K-01 Serf collects debris. 01821_ Acquired 30 matter. 01821_ K-01 Serf collects debris. 01824_ Critical hit (Burn: +37). 01826_ Lgt. Deuterium Engine destroyed. 01827_ K-01 Serf destroyed. 01828_ K-01 Serf collects debris. 01829_ Med. Laser destroyed. 01829_ Lgt. Treads destroyed. 01832_ K-01 Serf collects debris. 01836_ Med. Laser destroyed. 01836_ K-01 Serf collects debris. 01847_ Deuterium Engine destroyed. 01848_ Lgt. Treads destroyed. 01849_ K-01 Serf collects debris. 01850_ K-01 Serf destroyed. 01851_ ECM Suite destroyed. 01854_ Imp. Heat Sink destroyed. 01879_ Critical hit (Burn: +37). [Achievement: First Step to Greatness] Map ----- +----------------------------------------------------+ | ??????????????????????????????## ##????????????? | | ???????????????????????######## #########????? | | ???????????????????????# ?? | | ???????????????????????# T ?? | | ?????????????????####### ?? | | ?????????????????# # #### ###### ??? | | ?????????????????# # #??###+###??????? "??? | | ?????????????????# # #?????????????????????? | | ?????????????????# # #?????????????????????? | | ?????????????????# """ # #?????????????????????? | | ?????????????????# """ + =#?????????????????????? | | ?????????????????# """ # =%#?????????????????????? | | ?????????????????# # !#?????????????????????? | | ?????????????????# # #?????????????????????? | | ?????????????????# # #?????????????????????? | | ?????????????????# "T" # #?????????????????????? | | ?????????????????# """ #=% #?????????????????????? | | ?????????????????#######== #?????????????????????? | | ???????????????????????#%*%#?????????????????????? | | ???????????????????????#%= #?????????????????????? | | ???????????????????????# #?????????????????????? | | ???????????????????????# #??????? ??????????? | | ???????????????????????# #### ?????????? | | ???????????????????????# """?????????????? | | ???????????????????????# m### """?????????????? | | ???????????????????????# @ #?????"""?????????????? | | ???????????????????????# #?????????????????????? | | ???????????????????????# #?????????????????????? | | ???????????????????????#YY #?????????????????????? | | ???????????????????????# Y #?????????????????????? | | ???????????????????????# #?????????????????????? | | ???????????????????????# #?????????????????????? | | ???????????????????????# #?????????????????????? | | ??????????????????????? ?????????????????????? | | ??????????????????????? #????????????????????? | | ??????????????????????? #????????????????????? | | ??????????????????????# #????????????????????? | | ??????????????????????# #????????????????????? | | ??????????????????????### ###????????????????????? | | ????????????????????????? #??????????????????????? | | ?????????????????????????+#??????????????????????? | | ?????????????????????????????????????????????????? | | ?????????????????????????????????????????????????? | | ?????????????????????????????????????????????????? | | ?????????????????????????????????????????????????? | | ?????????????????????????????????????????????????? | | ?????????????????????????????????????????????????? | | ?????????????????????????????????????????????????? | | ?????????????????????????????????????????????????? | | ?????????????????????????????????????????????????? | +----------------------------------------------------+ Best States ------------- Heat Dissipation 45 Energy Generation 23 Energy Capacity 315 Matter Stores 300 Matter Capacity 300 Sight Range 16 Terrain Scan Density 10 ECM Strength 1 Resistance: KI 20 Resistance: TH 20 Resistance: EX 20 Resistance: EM 20 Resistance: I 20 Resistance: S 20 Resistance: P 20 Evasion (%) 55 Recoil Reduction 2 Offensive Hacking 10 Item Schematics ----------------- None Robot Schematics ------------------ None Fabricated ------------ Nothing Alien Tech Used ----------------- None Achievements -------------- Crack Shot First Step to Greatness Troublemaker Uninvited Guest Challenges ------------ None Game ------ Seed ActiveNeutronExoskeleton Manual? 0 Play Time 00:32:03 Cumulative 0.5 hours Start 2024.03.31 @ 08:16:16 End 2024.03.31 @ 08:57:35 Sessions 1 Manual Loads 0 Difficulty Adventurer Special Mode None Game No. 1 Rogue 0 Adventurer 1 Explorer 0 Win Type - Total 0 Types 0/0/0/0/0/0/0/0/0 Lore% 0 Gallery% 1 Achievement% 1 Wizard Run 0 Options --------- Layout 1 ASCII 0 Keyboard 0 Movement Arrows Keybinds 0 Fullscreen 1 Font 24/Smallcaps Map View 50x35 Zoom Use 0% Tactical HUD 1 Map Filters NONE Filters NONE Steam 1 RUN: 5f3dd8ba-003d-4027-8ed2-fe7a2c9fa75f